[Event "Polofinale MCR junioru 2023"]
[Site "Czech Republic"]
[Date "2023.11.14"]
[Round "4.33"]
[White "Brychta, David"]
[Black "Siles, Jan"]
[Result "0-1"]
[TimeControl "90 min per 40 moves + 15 min + 30 sec / move from move 1"]
[WhiteFideId "23742798"]
[BlackFideId "23715405"]
[WhiteElo "1230"]
[BlackElo "1829"]

1. d4 {[%clk 01:31:18]} {[%emt 00:00:01]} Nf6 {[%clk 01:30:54]} {[%emt
00:00:06]} 2. g3 {[%clk 01:31:44]} {[%emt 00:00:05]} e6 {[%clk 01:29:19]}
{[%emt 00:02:05]} 3. Bg2 {[%clk 01:32:08]} {[%emt 00:00:06]} c5 {[%clk
01:27:57]} {[%emt 00:01:52]} 4. Nf3 {[%clk 01:30:48]} {[%emt 00:01:50]} Nc6
{[%clk 01:27:08]} {[%emt 00:01:19]} 5. O-O {[%clk 01:30:39]} {[%emt 00:00:39]}
cxd4 {[%clk 01:24:06]} {[%emt 00:03:33]} 6. Nxd4 {[%clk 01:31:00]} {[%emt
00:00:09]} d5 {[%clk 01:24:23]} {[%emt 00:00:13]} 7. Nxc6 {[%clk 01:30:59]}
{[%emt 00:00:31]} bxc6 {[%clk 01:24:42]} {[%emt 00:00:11]} 8. c4 {[%clk
01:31:21]} {[%emt 00:00:08]} Bd6 {[%clk 01:23:19]} {[%emt 00:01:52]} 9. cxd5
{[%clk 01:30:21]} {[%emt 00:01:31]} exd5 {[%clk 01:21:38]} {[%emt 00:02:11]} 10.
Nc3 {[%clk 01:25:15]} {[%emt 00:05:35]} O-O {[%clk 01:16:23]} {[%emt 00:05:46]}
11. e4 {[%clk 01:17:06]} {[%emt 00:08:39]} dxe4 {[%clk 01:15:08]} {[%emt
00:01:45]} 12. Nxe4 {[%clk 01:17:24]} {[%emt 00:00:12]} Nxe4 {[%clk 01:15:17]}
{[%emt 00:00:20]} 13. Bxe4 {[%clk 01:17:48]} {[%emt 00:00:06]} Ba6 {[%clk
01:15:20]} {[%emt 00:00:27]} 14. Bd3 {[%clk 01:14:17]} {[%emt 00:04:01]} Bxd3
{[%clk 01:06:46]} {[%emt 00:09:04]} 15. Qxd3 {[%clk 01:14:40]} {[%emt
00:00:06]} Qc7 {[%clk 01:06:12]} {[%emt 00:01:04]} 16. Be3 {[%clk 01:12:38]}
{[%emt 00:02:32]} Rad8 {[%clk 01:04:40]} {[%emt 00:02:02]} 17. Qc2 {[%clk
01:13:01]} {[%emt 00:00:07]} h5 {[%clk 01:02:39]} {[%emt 00:02:30]} 18. Rac1
{[%clk 01:13:04]} {[%emt 00:00:27]} Rc8 {[%clk 01:01:45]} {[%emt 00:01:25]} 19.
Bc5 {[%clk 01:10:02]} {[%emt 00:03:32]} Rfd8 {[%clk 00:58:56]} {[%emt
00:03:19]} 20. Bxd6 {[%clk 01:03:18]} {[%emt 00:07:14]} Rxd6 {[%clk 00:59:24]}
{[%emt 00:00:02]} 21. Rfd1 {[%clk 01:02:35]} {[%emt 00:01:14]} Rf6 {[%clk
00:58:40]} {[%emt 00:01:13]} 22. Qd2 {[%clk 00:56:08]} {[%emt 00:06:57]} Re8
{[%clk 00:50:00]} {[%emt 00:09:10]} 23. Rc2 {[%clk 00:43:43]} {[%emt 00:12:55]}
Qe5 {[%clk 00:36:16]} {[%emt 00:14:15]} 24. Qd4 {[%clk 00:19:48]} {[%emt
00:24:26]} Qf5 {[%clk 00:35:46]} {[%emt 00:00:59]} 25. Rcd2 {[%clk 00:18:30]}
{[%emt 00:01:47]} Rfe6 {[%clk 00:33:48]} {[%emt 00:02:29]} 26. Rf1 {[%clk
00:17:33]} {[%emt 00:01:28]} h4 {[%clk 00:32:46]} {[%emt 00:01:31]} 27. Qxh4
{[%clk 00:16:49]} {[%emt 00:01:13]} g5 {[%clk 00:23:26]} {[%emt 00:09:51]} 28.
Qd4 {[%clk 00:15:07]} {[%emt 00:02:12]} Qh3 {[%clk 00:20:40]} {[%emt 00:03:15]}
29. f4 {[%clk 00:08:52]} {[%emt 00:06:45]} g4 {[%clk 00:13:59]} {[%emt
00:07:12]} 30. Qf2 {[%clk 00:07:01]} {[%emt 00:02:21]} a6 {[%clk 00:11:24]}
{[%emt 00:03:06]} 31. Rfd1 {[%clk 00:06:05]} {[%emt 00:01:26]} Kh7 {[%clk
00:09:29]} {[%emt 00:02:25]} 32. f5 {[%clk 00:03:09]} {[%emt 00:03:25]} Re3
{[%clk 00:09:07]} {[%emt 00:00:51]} 33. Qg2 {[%clk 00:00:42]} {[%emt 00:02:57]}
Qh5 {[%clk 00:09:33]} {[%emt 00:00:04]} 34. Qf2 {[%clk 00:00:33]} {[%emt
00:00:39]} R8e5 {[%clk 00:08:41]} {[%emt 00:01:22]} 35. Qg2 {[%clk 00:00:35]}
{[%emt 00:00:28]} Qxf5 {[%clk 00:08:40]} {[%emt 00:00:31]} 36. Rf2 {[%clk
00:00:37]} {[%emt 00:00:29]} Qg6 {[%clk 00:08:39]} {[%emt 00:00:31]} 37. Rdf1
{[%clk 00:01:02]} {[%emt 00:00:05]} f5 {[%clk 00:08:42]} {[%emt 00:00:27]} 38.
h3 {[%clk 00:00:52]} {[%emt 00:00:40]} Kg7 {[%clk 00:06:55]} {[%emt 00:02:17]}
39. hxg4 {[%clk 00:01:12]} {[%emt 00:00:10]} fxg4 {[%clk 00:06:29]} {[%emt
00:00:56]} 40. Rf7+ {[%clk 00:00:39]} {[%emt 00:01:03]} Qxf7 {[%clk 00:06:33]}
{[%emt 00:00:26]} 41. Rxf7+ {[%clk 00:01:04]} {[%emt 00:00:05]} Kxf7 {[%clk
00:06:58]} {[%emt 00:00:05]} 42. Qf2+ {[%clk 00:01:28]} {[%emt 00:00:07]} Kg7
{[%clk 00:04:49]} {[%emt 00:02:38]} 43. Kf1 {[%clk 00:01:37]} {[%emt 00:00:21]}
Rf3 {[%clk 00:04:39]} {[%emt 00:00:41]} 0-1

[Event "Polofinale MCR junioru 2023"]
[Site "Czech Republic"]
[Date "2023.11.14"]
[Round "4.34"]
[White "Jurok, Vojtech"]
[Black "Kocman, Patrik"]
[Result "0-1"]
[TimeControl "90 min per 40 moves + 15 min + 30 sec / move from move 1"]
[WhiteFideId "23741023"]
[BlackFideId "23735732"]
[WhiteElo "1801"]
[BlackElo "1478"]

1. e4 {[%clk 01:30:58]} e5 {[%clk 01:30:54]} {[%emt 00:00:07]} 2. Nf3 {[%clk
01:31:21]} {[%emt 00:00:06]} Nc6 {[%clk 01:31:13]} {[%emt 00:00:11]} 3. d4
{[%clk 01:31:46]} {[%emt 00:00:05]} exd4 {[%clk 01:31:29]} {[%emt 00:00:15]} 4.
Bc4 {[%clk 01:32:09]} {[%emt 00:00:06]} Bb4+ {[%clk 01:30:52]} {[%emt
00:01:07]} 5. c3 {[%clk 01:32:18]} {[%emt 00:00:22]} dxc3 {[%clk 01:31:12]}
{[%emt 00:00:09]} 6. bxc3 {[%clk 01:32:43]} {[%emt 00:00:05]} Ba5 {[%clk
01:31:04]} {[%emt 00:00:38]} 7. O-O {[%clk 01:31:57]} {[%emt 00:01:16]} d6
{[%clk 01:19:41]} {[%emt 00:11:54]} 8. Ba3 {[%clk 01:27:39]} {[%emt 00:04:48]}
Be6 {[%clk 01:14:03]} {[%emt 00:06:07]} 9. Bxe6 {[%clk 01:22:37]} {[%emt
00:05:31]} fxe6 {[%clk 01:14:14]} {[%emt 00:00:20]} 10. Qb3 {[%clk 01:21:58]}
{[%emt 00:01:09]} Qd7 {[%clk 01:05:48]} {[%emt 00:08:55]} 11. Nbd2 {[%clk
01:02:16]} {[%emt 00:20:12]} O-O-O {[%clk 00:54:58]} {[%emt 00:11:21]} 12. Rfd1
{[%clk 00:47:54]} {[%emt 00:14:52]} Bb6 {[%clk 00:52:38]} {[%emt 00:02:50]} 13.
c4 {[%clk 00:41:05]} {[%emt 00:07:18]} e5 {[%clk 00:40:55]} {[%emt 00:12:13]}
14. Rab1 {[%clk 00:37:12]} {[%emt 00:04:23]} Na5 {[%clk 00:37:41]} {[%emt
00:03:44]} 15. Qc3 {[%clk 00:36:38]} {[%emt 00:01:04]} c5 {[%clk 00:35:26]}
{[%emt 00:02:44]} 16. Nb3 {[%clk 00:25:47]} {[%emt 00:11:21]} Nxb3 {[%clk
00:33:58]} {[%emt 00:01:58]} 17. Qxb3 {[%clk 00:23:32]} {[%emt 00:02:44]} Qc7
{[%clk 00:32:25]} {[%emt 00:02:02]} 18. Ng5 {[%clk 00:21:11]} {[%emt 00:02:53]}
Re8 {[%clk 00:30:38]} {[%emt 00:02:16]} 19. Qh3+ {[%clk 00:19:54]} {[%emt
00:01:47]} Kb8 {[%clk 00:30:16]} {[%emt 00:00:53]} 20. Qd3 {[%clk 00:16:34]}
{[%emt 00:03:49]} h6 {[%clk 00:28:03]} {[%emt 00:02:43]} 21. Nf3 {[%clk
00:16:49]} {[%emt 00:00:16]} Re6 {[%clk 00:27:55]} {[%emt 00:00:37]} 22. Nh4
{[%clk 00:13:08]} {[%emt 00:04:12]} Ne7 {[%clk 00:25:44]} {[%emt 00:02:40]} 23.
Nf3 {[%clk 00:10:33]} {[%emt 00:03:06]} g5 {[%clk 00:24:59]} {[%emt 00:01:15]}
24. Ne1 {[%clk 00:09:21]} {[%emt 00:01:43]} h5 {[%clk 00:21:36]} {[%emt
00:03:54]} 25. Nc2 {[%clk 00:09:10]} {[%emt 00:00:41]} g4 {[%clk 00:20:46]}
{[%emt 00:01:19]} 26. Ne3 {[%clk 00:08:52]} {[%emt 00:00:49]} Rg6 {[%clk
00:19:50]} {[%emt 00:01:25]} 27. Nd5 {[%clk 00:06:28]} {[%emt 00:02:55]} Nxd5
{[%clk 00:19:43]} {[%emt 00:00:37]} 28. Qxd5 {[%clk 00:06:20]} {[%emt
00:00:39]} Rf8 {[%clk 00:19:24]} {[%emt 00:00:47]} 29. Rd3 {[%clk 00:04:47]}
{[%emt 00:02:05]} Qf7 {[%clk 00:18:19]} {[%emt 00:01:33]} 30. Rb2 {[%clk
00:02:23]} {[%emt 00:02:55]} Qxd5 {[%clk 00:18:28]} {[%emt 00:00:21]} 31. exd5
{[%clk 00:02:26]} {[%emt 00:00:27]} Rgf6 {[%clk 00:18:11]} {[%emt 00:00:46]} 32.
g3 {[%clk 00:02:15]} {[%emt 00:00:42]} Ba5 {[%clk 00:16:17]} {[%emt 00:02:21]}
33. Re2 {[%clk 00:02:16]} {[%emt 00:00:31]} a6 {[%clk 00:15:47]} {[%emt
00:01:02]} 34. Bc1 {[%clk 00:01:55]} {[%emt 00:00:50]} Rg6 {[%clk 00:13:45]}
{[%emt 00:02:31]} 35. a4 {[%clk 00:01:59]} {[%emt 00:00:28]} Bd8 {[%clk
00:13:31]} {[%emt 00:00:44]} 36. Kg2 {[%clk 00:01:43]} {[%emt 00:00:47]} Bg5
{[%clk 00:13:39]} {[%emt 00:00:21]} 37. Bxg5 {[%clk 00:01:02]} {[%emt
00:01:12]} Rxg5 {[%clk 00:14:04]} {[%emt 00:00:05]} 38. h3 {[%clk 00:01:20]}
{[%emt 00:00:12]} Rgf5 {[%clk 00:13:50]} {[%emt 00:00:43]} 39. hxg4 {[%clk
00:01:00]} {[%emt 00:00:51]} hxg4 {[%clk 00:14:16]} {[%emt 00:00:02]} 40. Kg1
{[%clk 00:00:49]} {[%emt 00:00:43]} Kc7 {[%clk 00:13:59]} {[%emt 00:00:47]} 41.
Rb3 {[%clk 00:15:25]} {[%emt 00:01:23]} R8f7 {[%clk 00:26:29]} {[%emt
00:03:30]} 42. Reb2 {[%clk 00:14:04]} {[%emt 00:01:52]} Kc8 {[%clk 00:26:12]}
{[%emt 00:00:47]} 43. Rb6 {[%clk 00:13:04]} {[%emt 00:01:28]} Rd7 {[%clk
00:25:51]} {[%emt 00:00:53]} 44. Re2 {[%clk 00:10:40]} {[%emt 00:02:54]} Rf3
{[%clk 00:25:20]} {[%emt 00:00:58]} 45. Re4 {[%clk 00:10:38]} {[%emt 00:00:35]}
Kc7 {[%clk 00:25:19]} {[%emt 00:00:31]} 46. Rb2 {[%clk 00:10:26]} {[%emt
00:00:41]} Rg7 {[%clk 00:25:36]} {[%emt 00:00:14]} 47. Ra2 {[%clk 00:08:10]}
{[%emt 00:02:46]} Rd3 {[%clk 00:25:11]} {[%emt 00:00:53]} 48. Re3 {[%clk
00:07:16]} {[%emt 00:01:26]} Rxe3 {[%clk 00:24:10]} {[%emt 00:01:31]} 49. fxe3
{[%clk 00:07:45]} {[%emt 00:00:02]} Rf7 {[%clk 00:24:16]} {[%emt 00:00:24]} 50.
Rh2 {[%clk 00:06:34]} {[%emt 00:01:40]} Kb6 {[%clk 00:19:19]} {[%emt 00:05:27]}
51. Rh6 {[%clk 00:06:18]} {[%emt 00:00:46]} Rd7 {[%clk 00:18:49]} {[%emt
00:01:00]} 52. Rg6 {[%clk 00:06:36]} {[%emt 00:00:13]} Ka5 {[%clk 00:19:10]}
{[%emt 00:00:09]} 53. Rxg4 {[%clk 00:06:58]} {[%emt 00:00:07]} Kxa4 {[%clk
00:19:39]} {[%emt 00:00:01]} 54. Rg8 {[%clk 00:06:54]} {[%emt 00:00:34]} Kb4
{[%clk 00:19:58]} {[%emt 00:00:11]} 55. g4 {[%clk 00:07:07]} {[%emt 00:00:17]}
Kxc4 {[%clk 00:19:53]} {[%emt 00:00:35]} 0-1

[Event "Polofinale MCR junioru 2023"]
[Site "Czech Republic"]
[Date "2023.11.14"]
[Round "4.35"]
[White "Pistej, Tomas"]
[Black "Kulhanek, Jachym"]
[Result "0-1"]
[TimeControl "90 min per 40 moves + 15 min + 30 sec / move from move 1"]
[WhiteFideId "23750740"]
[BlackFideId "23716193"]
[WhiteElo "1502"]
[BlackElo "2056"]

1. e4 {[%clk 01:30:56]} {[%emt 00:00:03]} c5 {[%clk 01:30:58]} {[%emt
00:00:03]} 2. Nc3 {[%clk 01:31:22]} {[%emt 00:00:04]} d6 {[%clk 01:31:18]}
{[%emt 00:00:11]} 3. f4 {[%clk 01:31:43]} {[%emt 00:00:09]} g6 {[%clk
01:31:36]} {[%emt 00:00:12]} 4. Nf3 {[%clk 01:32:02]} {[%emt 00:00:10]} Bg7
{[%clk 01:32:02]} {[%emt 00:00:05]} 5. Bc4 {[%clk 01:32:20]} {[%emt 00:00:11]}
e6 {[%clk 01:32:17]} {[%emt 00:00:15]} 6. O-O {[%clk 01:32:31]} {[%emt
00:00:18]} Ne7 {[%clk 01:32:42]} {[%emt 00:00:05]} 7. d3 {[%clk 01:32:45]}
{[%emt 00:00:16]} O-O {[%clk 01:33:08]} {[%emt 00:00:05]} 8. Qe1 {[%clk
01:32:54]} {[%emt 00:00:20]} Nbc6 {[%clk 01:30:06]} {[%emt 00:03:32]} 9. f5
{[%clk 01:31:49]} {[%emt 00:01:35]} exf5 {[%clk 01:26:33]} {[%emt 00:04:03]} 10.
Qh4 {[%clk 01:31:45]} {[%emt 00:00:33]} h5 {[%clk 01:09:02]} {[%emt 00:18:00]}
11. Bg5 {[%clk 01:28:10]} {[%emt 00:04:05]} Qe8 {[%clk 00:50:47]} {[%emt
00:18:44]} 12. Nb5 {[%clk 01:09:32]} {[%emt 00:19:09]} Qd7 {[%clk 00:51:11]}
{[%emt 00:00:06]} 13. Qg3 {[%clk 00:56:56]} {[%emt 00:13:04]} d5 {[%clk
00:45:05]} {[%emt 00:06:36]} 14. exd5 {[%clk 00:53:01]} {[%emt 00:04:24]} Nd4
{[%clk 00:40:07]} {[%emt 00:05:29]} 15. Nfxd4 {[%clk 00:47:58]} {[%emt
00:05:33]} cxd4 {[%clk 00:36:08]} {[%emt 00:04:29]} 16. Rae1 {[%clk 00:43:41]}
{[%emt 00:04:46]} Nxd5 {[%clk 00:33:27]} {[%emt 00:03:12]} 17. Bxd5 {[%clk
00:38:55]} {[%emt 00:05:16]} Qxb5 {[%clk 00:33:49]} {[%emt 00:00:08]} 18. Bc4
{[%clk 00:36:28]} {[%emt 00:02:56]} Qc6 {[%clk 00:33:07]} {[%emt 00:01:12]} 19.
Re7 {[%clk 00:29:53]} {[%emt 00:07:05]} Be6 {[%clk 00:28:59]} {[%emt 00:04:39]}
20. Bxe6 {[%clk 00:26:55]} {[%emt 00:03:27]} fxe6 {[%clk 00:29:26]} {[%emt
00:00:03]} 21. Bf4 {[%clk 00:20:55]} {[%emt 00:06:30]} Rf7 {[%clk 00:28:30]}
{[%emt 00:01:27]} 22. Rc7 {[%clk 00:11:22]} {[%emt 00:10:02]} Rxc7 {[%clk
00:28:42]} {[%emt 00:00:18]} 23. Bxc7 {[%clk 00:11:44]} {[%emt 00:00:08]} Kf7
{[%clk 00:22:31]} {[%emt 00:06:41]} 24. Be5 {[%clk 00:10:52]} {[%emt 00:01:21]}
Bxe5 {[%clk 00:22:42]} {[%emt 00:00:19]} 25. Qxe5 {[%clk 00:11:15]} {[%emt
00:00:07]} Rd8 {[%clk 00:21:59]} {[%emt 00:01:12]} 26. Re1 {[%clk 00:11:06]}
{[%emt 00:00:40]} Qd6 {[%clk 00:19:29]} {[%emt 00:03:00]} 27. Qa5 {[%clk
00:09:47]} {[%emt 00:01:49]} a6 {[%clk 00:19:31]} {[%emt 00:00:29]} 28. Re2
{[%clk 00:08:26]} {[%emt 00:01:50]} b5 {[%clk 00:18:21]} {[%emt 00:01:40]} 29.
a3 {[%clk 00:07:00]} {[%emt 00:01:56]} e5 {[%clk 00:17:04]} {[%emt 00:01:47]}
30. Qe1 {[%clk 00:06:46]} {[%emt 00:00:44]} Re8 {[%clk 00:16:59]} {[%emt
00:00:35]} 31. h4 {[%clk 00:06:15]} {[%emt 00:01:00]} Re6 {[%clk 00:15:25]}
{[%emt 00:02:05]} 32. g3 {[%clk 00:04:35]} {[%emt 00:02:10]} Qd5 {[%clk
00:11:50]} {[%emt 00:04:06]} 33. Kf2 {[%clk 00:04:16]} {[%emt 00:00:47]} e4
{[%clk 00:09:49]} {[%emt 00:02:32]} 34. dxe4 {[%clk 00:04:01]} {[%emt
00:00:45]} fxe4 {[%clk 00:08:55]} {[%emt 00:01:24]} 35. Kg1 {[%clk 00:03:43]}
{[%emt 00:00:46]} e3 {[%clk 00:08:36]} {[%emt 00:00:51]} 36. Qf1+ {[%clk
00:02:32]} {[%emt 00:01:40]} Rf6 {[%clk 00:08:45]} {[%emt 00:00:22]} 37. Qg2
{[%clk 00:02:20]} {[%emt 00:00:41]} Qxg2+ {[%clk 00:08:22]} {[%emt 00:00:54]}
38. Kxg2 {[%clk 00:02:40]} {[%emt 00:00:09]} Ke6 {[%clk 00:08:31]} {[%emt
00:00:22]} 39. b3 {[%clk 00:00:46]} {[%emt 00:02:23]} Kd5 {[%clk 00:08:55]}
{[%emt 00:00:05]} 40. Kg1 {[%clk 00:00:34]} {[%emt 00:00:43]} Ke5 {[%emt
00:01:04]} 0-1

[Event "Polofinale MCR junioru 2023"]
[Site "Czech Republic"]
[Date "2023.11.14"]
[Round "4.36"]
[White "Vasinek, Martin"]
[Black "Slaby, Matej"]
[Result "0-1"]
[TimeControl "90 min per 40 moves + 15 min + 30 sec / move from move 1"]
[WhiteFideId "392200"]
[BlackFideId "23734876"]
[WhiteElo "1987"]
[BlackElo "1940"]

1. d4 {[%clk 01:30:56]} {[%emt 00:00:03]} Nf6 {[%clk 01:30:53]} {[%emt
00:00:07]} 2. c4 {[%clk 01:31:17]} {[%emt 00:00:09]} g6 {[%clk 01:31:17]}
{[%emt 00:00:06]} 3. Nf3 {[%clk 01:31:22]} {[%emt 00:00:25]} Bg7 {[%clk
01:31:36]} {[%emt 00:00:11]} 4. Nc3 {[%clk 01:31:47]} {[%emt 00:00:05]} O-O
{[%clk 01:31:48]} {[%emt 00:00:19]} 5. e4 {[%clk 01:32:11]} {[%emt 00:00:06]}
d6 {[%clk 01:32:13]} {[%emt 00:00:05]} 6. Be2 {[%clk 01:32:27]} {[%emt
00:00:14]} e5 {[%clk 01:32:29]} {[%emt 00:00:14]} 7. d5 {[%clk 01:32:53]}
{[%emt 00:00:04]} Nbd7 {[%clk 01:31:37]} {[%emt 00:01:23]} 8. O-O {[%clk
01:32:30]} {[%emt 00:00:52]} Nc5 {[%clk 01:28:12]} {[%emt 00:03:55]} 9. Qc2
{[%clk 01:32:41]} {[%emt 00:00:19]} a5 {[%clk 01:28:29]} {[%emt 00:00:12]} 10.
Ne1 {[%clk 01:16:20]} {[%emt 00:16:51]} Ne8 {[%clk 01:22:19]} {[%emt 00:06:41]}
11. Be3 {[%clk 01:16:11]} {[%emt 00:00:39]} f5 {[%clk 01:17:26]} {[%emt
00:05:23]} 12. f3 {[%clk 01:15:39]} {[%emt 00:01:01]} f4 {[%clk 01:16:02]}
{[%emt 00:01:56]} 13. Bf2 {[%clk 01:15:52]} {[%emt 00:00:16]} Bd7 {[%clk
01:14:18]} {[%emt 00:02:15]} 14. b3 {[%clk 01:13:53]} {[%emt 00:02:29]} g5
{[%clk 01:13:45]} {[%emt 00:01:03]} 15. Rb1 {[%clk 01:11:17]} {[%emt 00:03:06]}
h5 {[%clk 01:11:48]} {[%emt 00:02:27]} 16. a3 {[%clk 01:10:49]} {[%emt
00:00:59]} Rf6 {[%clk 00:53:26]} {[%emt 00:18:51]} 17. b4 {[%clk 01:08:23]}
{[%emt 00:02:56]} axb4 {[%clk 00:53:52]} {[%emt 00:00:04]} 18. axb4 {[%clk
01:08:46]} {[%emt 00:00:07]} Na4 {[%clk 00:54:06]} {[%emt 00:00:16]} 19. c5
{[%clk 01:06:40]} {[%emt 00:02:36]} Rg6 {[%clk 00:49:06]} {[%emt 00:05:30]} 20.
Nxa4 {[%clk 00:52:19]} {[%emt 00:14:51]} Bxa4 {[%clk 00:49:20]} {[%emt
00:00:16]} 21. Qc4 {[%clk 00:52:01]} {[%emt 00:00:47]} Bd7 {[%clk 00:38:10]}
{[%emt 00:11:40]} 22. b5 {[%clk 00:44:53]} {[%emt 00:07:38]} dxc5 {[%clk
00:31:44]} {[%emt 00:06:56]} 23. Qxc5 {[%clk 00:42:55]} {[%emt 00:02:28]} g4
{[%clk 00:29:34]} {[%emt 00:02:40]} 24. g3 {[%clk 00:41:08]} {[%emt 00:02:17]}
b6 {[%clk 00:25:46]} {[%emt 00:04:19]} 25. Qc2 {[%clk 00:37:52]} {[%emt
00:03:44]} h4 {[%clk 00:24:26]} {[%emt 00:01:51]} 26. Kg2 {[%clk 00:37:10]}
{[%emt 00:01:11]} hxg3 {[%clk 00:19:58]} {[%emt 00:05:00]} 27. hxg3 {[%clk
00:37:27]} {[%emt 00:00:12]} fxg3 {[%clk 00:19:30]} {[%emt 00:00:59]} 28. Bxg3
{[%clk 00:37:04]} {[%emt 00:00:53]} Ra3 {[%clk 00:15:18]} {[%emt 00:04:42]} 29.
Rb3 {[%clk 00:36:13]} {[%emt 00:01:21]} gxf3+ {[%clk 00:13:04]} {[%emt
00:02:45]} 30. Nxf3 {[%clk 00:35:22]} {[%emt 00:01:20]} Rxb3 {[%clk 00:13:27]}
{[%emt 00:00:08]} 31. Qxb3 {[%clk 00:35:46]} {[%emt 00:00:06]} Nd6 {[%clk
00:13:45]} {[%emt 00:00:12]} 32. Bd3 {[%clk 00:33:44]} {[%emt 00:02:31]} Bf6
{[%clk 00:13:50]} {[%emt 00:00:26]} 33. Rh1 {[%clk 00:31:51]} {[%emt 00:02:23]}
Rg4 {[%clk 00:12:10]} {[%emt 00:02:10]} 34. Qb1 {[%clk 00:30:17]} {[%emt
00:02:05]} Qe8 {[%clk 00:11:22]} {[%emt 00:01:18]} 35. Qd1 {[%clk 00:25:04]}
{[%emt 00:05:42]} Qg6 {[%clk 00:10:38]} {[%emt 00:01:15]} 36. Qe1 {[%clk
00:24:28]} {[%emt 00:01:06]} Bxb5 {[%clk 00:08:40]} {[%emt 00:02:28]} 37. Bxb5
{[%clk 00:24:27]} {[%emt 00:00:31]} Nxb5 {[%clk 00:09:08]} {[%emt 00:00:02]} 38.
Rh3 {[%clk 00:24:17]} {[%emt 00:00:39]} Qxe4 {[%clk 00:07:55]} {[%emt
00:01:44]} 39. Qd1 {[%clk 00:18:53]} {[%emt 00:05:53]} Nd4 {[%clk 00:07:49]}
{[%emt 00:00:36]} 0-1

[Event "Polofinale MCR junioru 2023"]
[Site "Czech Republic"]
[Date "2023.11.14"]
[Round "4.37"]
[White "Popov, Roman"]
[Black "Hampl, David"]
[Result "1-0"]
[TimeControl "90 min per 40 moves + 15 min + 30 sec / move from move 1"]
[WhiteFideId "23732580"]
[BlackFideId "398802"]
[WhiteElo "1889"]
[BlackElo "1801"]

1. d4 {[%clk 01:30:52]} {[%emt 00:00:07]} Nf6 {[%clk 01:29:41]} {[%emt
00:01:20]} 2. c4 {[%clk 01:31:03]} {[%emt 00:00:19]} g6 {[%clk 01:30:05]}
{[%emt 00:00:05]} 3. Nc3 {[%clk 01:31:27]} {[%emt 00:00:05]} d5 {[%clk
01:30:28]} {[%emt 00:00:07]} 4. Nf3 {[%clk 01:31:46]} {[%emt 00:00:11]} Bg7
{[%clk 01:30:49]} {[%emt 00:00:09]} 5. Bf4 {[%clk 01:31:54]} {[%emt 00:00:22]}
O-O {[%clk 01:29:45]} {[%emt 00:01:34]} 6. e3 {[%clk 01:32:13]} {[%emt
00:00:11]} c6 {[%clk 01:29:01]} {[%emt 00:01:14]} 7. h3 {[%clk 01:30:27]}
{[%emt 00:02:16]} Bf5 {[%clk 01:18:33]} {[%emt 00:10:58]} 8. Bd3 {[%clk
01:22:07]} {[%emt 00:08:50]} Ne4 {[%clk 01:15:22]} {[%emt 00:03:42]} 9. O-O
{[%clk 01:20:29]} {[%emt 00:02:08]} Nd7 {[%clk 01:11:46]} {[%emt 00:04:05]} 10.
Bxe4 {[%clk 01:06:16]} {[%emt 00:14:43]} Bxe4 {[%clk 01:04:51]} {[%emt
00:07:25]} 11. Nxe4 {[%clk 00:56:52]} {[%emt 00:09:54]} dxe4 {[%clk 01:03:16]}
{[%emt 00:02:05]} 12. Ng5 {[%clk 00:56:04]} {[%emt 00:01:19]} e5 {[%clk
00:52:18]} {[%emt 00:11:28]} 13. dxe5 {[%clk 00:54:02]} {[%emt 00:02:31]} Nxe5
{[%clk 00:51:54]} {[%emt 00:00:54]} 14. Bxe5 {[%clk 00:36:00]} {[%emt
00:18:32]} Bxe5 {[%clk 00:43:24]} {[%emt 00:09:00]} 15. Nxe4 {[%clk 00:34:05]}
{[%emt 00:02:26]} Qb6 {[%clk 00:39:21]} {[%emt 00:04:33]} 16. Qc2 {[%clk
00:33:01]} {[%emt 00:01:34]} Rad8 {[%clk 00:36:28]} {[%emt 00:03:23]} 17. Rad1
{[%clk 00:31:45]} {[%emt 00:01:46]} Rfe8 {[%clk 00:28:34]} {[%emt 00:08:24]} 18.
b3 {[%clk 00:28:07]} {[%emt 00:04:09]} a5 {[%clk 00:25:16]} {[%emt 00:03:48]}
19. Ng5 {[%clk 00:22:46]} {[%emt 00:05:51]} Bf6 {[%clk 00:21:34]} {[%emt
00:04:12]} 20. Nf3 {[%clk 00:22:15]} {[%emt 00:01:01]} Bg7 {[%clk 00:20:19]}
{[%emt 00:01:44]} 21. Rxd8 {[%clk 00:15:52]} {[%emt 00:06:52]} Rxd8 {[%clk
00:20:25]} {[%emt 00:00:25]} 22. Rd1 {[%clk 00:15:54]} {[%emt 00:00:29]} Bf6
{[%clk 00:16:00]} {[%emt 00:04:55]} 23. Rxd8+ {[%clk 00:12:03]} {[%emt
00:04:21]} Qxd8 {[%clk 00:16:21]} {[%emt 00:00:09]} 24. Qd2 {[%clk 00:11:59]}
{[%emt 00:00:35]} Qc7 {[%clk 00:13:41]} {[%emt 00:03:10]} 25. Qd3 {[%clk
00:11:27]} {[%emt 00:01:02]} Qe7 {[%clk 00:12:48]} {[%emt 00:01:22]} 26. a4
{[%clk 00:06:37]} {[%emt 00:05:21]} Qb4 {[%clk 00:10:27]} {[%emt 00:02:50]} 27.
g3 {[%clk 00:04:35]} {[%emt 00:02:33]} Qb6 {[%clk 00:08:41]} {[%emt 00:02:17]}
28. Nd2 {[%clk 00:02:14]} {[%emt 00:02:51]} Qb4 {[%clk 00:06:56]} {[%emt
00:02:15]} 29. Ne4 {[%clk 00:01:26]} {[%emt 00:01:18]} Be5 {[%clk 00:04:31]}
{[%emt 00:02:55]} 30. Kg2 {[%clk 00:00:59]} {[%emt 00:00:57]} Qe7 {[%clk
00:03:08]} {[%emt 00:01:53]} 31. c5 {[%clk 00:00:51]} {[%emt 00:00:38]} f5
{[%clk 00:01:10]} {[%emt 00:02:28]} 32. Nd6 {[%clk 00:00:44]} {[%emt 00:00:37]}
Kg7 {[%clk 00:00:48]} {[%emt 00:00:52]} 33. Qd2 {[%clk 00:00:38]} {[%emt
00:00:36]} Kg8 {[%clk 00:00:37]} {[%emt 00:00:41]} 34. Qxa5 {[%clk 00:00:37]}
{[%emt 00:00:31]} Bxd6 {[%clk 00:00:32]} {[%emt 00:00:35]} 35. cxd6 {[%clk
00:00:50]} {[%emt 00:00:17]} Qxd6 {[%clk 00:00:35]} {[%emt 00:00:27]} 36. Qa8+
{[%clk 00:01:12]} {[%emt 00:00:07]} Kg7 {[%clk 00:00:53]} {[%emt 00:00:13]} 37.
Qxb7+ {[%clk 00:01:29]} {[%emt 00:00:13]} Kh6 {[%clk 00:01:14]} {[%emt
00:00:08]} 38. Qf7 {[%clk 00:01:22]} {[%emt 00:00:36]} Qb4 {[%clk 00:01:13]}
{[%emt 00:00:32]} 39. Qc4 {[%clk 00:01:38]} {[%emt 00:00:15]} Qb6 {[%clk
00:00:58]} {[%emt 00:00:45]} 40. Qh4+ {[%clk 00:02:00]} {[%emt 00:00:09]} Kg7
{[%clk 00:01:20]} {[%emt 00:00:07]} 41. Qd4+ {[%clk 00:02:18]} {[%emt
00:00:13]} Qxd4 {[%clk 00:01:32]} {[%emt 00:00:19]} 42. exd4 {[%clk 00:02:42]}
{[%emt 00:00:06]} 1-0